Cogmind - Beta 12 @@@ ROGUE MODE // 2023.09.08 @ 13:02:36 Player: monistgf Result: Destroyed by Y-45 Defender with Beam Rifle Performance ------------- Evolutions (1) 500 Regions Visited (3) 600 Robots Destroyed (26) 130 Value Destroyed (700) 700 Prototype IDs (0) 0 Alien Tech Used (0) 0 Bonus (0) 0 TOTAL SCORE: 1930 Bonus ------- None Cogmind --------- Core Integrity 0/400 Matter 133/300 Energy 69/100 System Corruption 0% Temperature Cool (43) Movement Rolling (120) Ox2 Location -9/Materials Parts ------- > --- POWER (1) -------- (None) > --- PROPULSION (3) --- Armored Wheel > --- UTILITY (2) ------ Large Storage Unit > --- WEAPON (3) ------- Grenade Launcher Mining Claw Mining Claw > --- INVENTORY (15) --- Light Ion Engine Medium Storage Unit Sensor Array Mining Claw Peak State ------------ > --- POWER ------------ Ion Engine > --- PROPULSION ------- Aluminum Leg Aluminum Leg > --- UTILITY ---------- Small Storage Unit Light Armor Plating > --- WEAPON ----------- Assault Rifle Assault Rifle > --- INVENTORY -------- Ion Engine Aluminum Leg Aluminum Leg Aluminum Leg Improved Heat Sink Light Armor Plating Light Armor Plating Assault Rifle [Rating: 8] Favorites ----------- Power Ion Engine Engine Ion Engine Propulsion Aluminum Leg Leg Aluminum Leg Wheel Armored Wheel Utility Medium Storage Unit Device Sensor Array Storage Medium Storage Unit Protection Light Armor Plating Weapon Assault Rifle Ballistic Gun Assault Rifle Launcher Grenade Launcher Slashing Weapon Mining Claw Build | -11 -10 -10 -9 ------- Run | Jun Mat Min Mat Slots Evolved 2 | . . . 2 Power . | . . . . Propulsion 1 | . . . 1 Utility . | . . . . Weapon 1 | . . . 1 Parts Attached 46 | 6 11 9 20 Power 5 | 1 1 1 2 Engine 5 | 1 1 1 2 Core . | . . . . Reactor . | . . . . Propulsion 17 | 2 4 3 8 Treads . | . . . . Leg 16 | 2 4 3 7 Wheel 1 | . . . 1 Hover . | . . . . Flight . | . . . . Utility 8 | 1 3 2 2 Device 1 | . 1 . . Storage 3 | 1 1 . 1 Processor . | . . . . Hackware . | . . . . Protection 4 | . 1 2 1 Artifact . | . . . . Weapon 16 | 2 3 3 8 Energy Gun . | . . . . Energy Cannon . | . . . . Ballistic Gun 7 | 2 3 2 . Ballistic Cannon . | . . . . Launcher 5 | . . 1 4 Special Weapon . | . . . . Impact Weapon . | . . . . Slashing Weapon 4 | . . . 4 Piercing Weapon . | . . . . Special Melee Weapon . | . . . . Unidentified Prototypes . | . . . . Parts Lost 21 | . 1 5 15 Power 3 | . . 1 2 Propulsion 7 | . . 1 6 Utility 4 | . . 2 2 Weapon 7 | . 1 1 5 Highest Loss Streak 7 | . 1 3 7 To Critical Strikes 1 | . . . 1 Average Slot Usage (%) 86 | . 96 80 67 Engine 10 | . 14 4 5 Leg 28 | . 28 28 30 Device 6 | . 10 . . Storage 13 | . 14 14 11 Protection 3 | . . 12 6 Ballistic Gun 20 | . 28 19 3 Launcher 1 | . . . 6 Naked Turns . | . . . . Heaviest Build 32 | 14 20 19 32 Greatest Support 30 | 20 20 20 30 Greatest Overweight (x) 4 | 4 . 1 2 Average Overweight (x) . | . . . . Largest Inventory Capacity 15 | 8 10 10 15 Average Capacity 10 | 7 9 10 14 Most Carried 10 | 1 10 10 10 Average Carried 7 | . 8 9 6 Final Capacity 15 | 8 10 10 15 Final Carried 10 | 1 10 8 4 Class Distribution -------------------- 89% | Mutant 10% | Scavenger-Mutant Dominant Class ---------------- Mutant | -10/Materials Mutant | -10/Mines Mutant | -9/Materials Resources | -11 -10 -10 -9 ----------- Run | Jun Mat Min Mat Matter Collected 774 | 254 322 92 106 Remotely . | . . . . Salvage Created 745 | . 437 71 237 Parts 62 | . 30 11 21 Haulers Intercepted 2 | . 2 . . Recyclers Shooed . | . . . . Parts Field Recycled . | . . . . Retrieved Matter . | . . . . Parts Self-Destructed . | . . . . Prevented . | . . . . Kills | -11 -10 -10 -9 ------- Run | Jun Mat Min Mat Combat Hostiles Destroyed 22 | . 10 5 7 Guns 14 | . 10 2 2 AOE 8 | . . 3 5 Classes Destroyed 5 | . 3 . 2 Worker 1 | . . . 1 Hauler 2 | . 2 . . Watcher 1 | . . . 1 Swarmer 6 | . 3 3 . Grunt 16 | . 7 2 7 Best Kill Streak 5 | . 5 5 3 Combat Bots Only 5 | . 5 5 3 Max Kills in Single Turn 3 | . 1 2 3 Gunslinging . | . . . . Exploded 3 | . . 2 3 Melee . | . . . . Uniques/NPCs Destroyed . | . . . . Combat | -11 -10 -10 -9 -------- Run | Jun Mat Min Mat Damage Taken 2672 | . 509 650 1513 Core 614 | . 79 135 400 Absorbed by Shields . | . . . . Core Remaining (%) 57 | 100 . 14 . Volleys Fired 69 | . 39 9 21 Largest 2 | . 2 2 2 Hottest 60 | . 40 40 60 Shots Fired 117 | . 77 13 27 Gun 105 | . 77 9 19 Cannon . | . . . . Launcher 12 | . . 4 8 Special . | . . . . Kinetic 105 | . 77 9 19 Thermal . | . . . . Explosive 12 | . . 4 8 Electromagnetic . | . . . . Robot Hit Streak 11 | . 9 5 11 Robot Miss Streak 2 | . 2 1 1 Penetration Max . | . . . . Secondary Targets 3 | . 1 1 1 Max Gunslinging Chain 1 | . 1 1 1 Shots Hit Robots 82 | . 52 10 20 Core Hits 52 | . 23 9 20 Critical Kills . | . . . . Critical Parts Destroyed 1 | . 1 . . Critical Strikes 1 | . 1 . . Destroy 1 | . 1 . . Melee Attacks . | . . . . Impact . | . . . . Slashing . | . . . . Piercing . | . . . . Sneak Attacks . | . . . . Combat Hostiles . | . . . . Follow-up Attacks . | . . . . Damage Inflicted 1740 | . 691 386 663 Guns 913 | . 691 92 130 Cannons . | . . . . Explosions 826 | . . 294 532 Melee . | . . . . Ramming 1 | . . . 1 Kinetic 913 | . 691 92 130 Thermal . | . . . . Explosive 826 | . . 294 532 Electromagnetic . | . . . . Impact . | . . . . Slashing . | . . . . Piercing . | . . . . Highest Corruption . | . . . . Average Corruption . | . . . . Corruption Purged . | . . . . Corruption Blocked . | . . . . Overload Shots . | . . . . Overflow Damage 21 | . . 11 10 Projectiles . | . . . . Explosions 21 | . . 11 10 Melee . | . . . . Knockbacks . | . . . . Impact . | . . . . Kinetic . | . . . . Secondary . | . . . . Self-Inflicted Damage 74 | . . 19 55 Shots 4 | . . 1 3 Rammed . | . . . . Targets Rammed 1 | . . . 1 Kicked 1 | . . . 1 Crushed . | . . . . Highest Temperature 61 | . 5 10 61 Average Temperature 11 | . 2 7 18 Received Heat Transfer 1071 | . 222 129 720 Siege Activations . | . . . . Robots Corrupted . | . . . . Combat Hostiles . | . . . . Parts Fried . | . . . . Impact Corruptions . | . . . . Robots Melted . | . . . . Combat Hostiles . | . . . . Parts Melted . | . . . . Heat Transferred . | . . . . Parts Sabotaged . | . . . . Parts Stolen . | . . . . Parts Stripped . | . . . . Power Chain Reactions . | . . . . Missiles Intercepted . | . . . . Alert | -11 -10 -10 -9 ------- Run | Jun Mat Min Mat Peak Influence 225 | . 225 127 150 Initial 41 | . . . 41 Average 63 | . 41 118 83 Maximum Alert Level 1 | . 1 . . Low Security (%) 98 | 100 96 100 100 Level 1 1 | . 3 . . Level 2 . | . . . . Level 3 . | . . . . Level 4 . | . . . . Level 5 . | . . . . High Security . | . . . . Max Security . | . . . . Squads Dispatched 5 | . 3 . 2 Investigation 1 | . 1 . . Extermination . | . . . . Reinforcement 4 | . 2 . 2 Assault . | . . . . Garrison . | . . . . Intercept . | . . . . Searches Triggered . | . . . . Construction Impeded . | . . . . Haulers Reinforced . | . . . . Active Scanning Responses . | . . . . Cargo Convoy Interrupts . | . . . . Stealth | -11 -10 -10 -9 --------- Run | Jun Mat Min Mat Distress Signals 1 | . . . 1 Communications Jammed . | . . . . Distress Signals . | . . . . Times Spotted 46 | . 20 8 18 Peak Tracking Total 8 | . 5 5 8 Tactical Retreats 3 | . 1 1 1 Traps | -11 -10 -10 -9 ------- Run | Jun Mat Min Mat Traps Triggered 2 | . 1 . 1 Indirectly . | . . . . Trap Hack Attempts . | . . . . Triggered . | . . . . Disarmed . | . . . . Reprogrammed . | . . . . Reused . | . . . . Traps Extracted . | . . . . Installed . | . . . . Triggered . | . . . . Machines | -11 -10 -10 -9 ---------- Run | Jun Mat Min Mat Machines Disabled 1 | . 1 . . Max in Single Turn 1 | . 1 . . Machines Repaired . | . . . . Machines Sabotaged . | . . . . Overloaded Fab Kills . | . . . . Hacking | -11 -10 -10 -9 --------- Run | Jun Mat Min Mat Machines Accessed 7 | . 6 . 1 Terminals 6 | . 5 . 1 Fabricators . | . . . . Repair Stations . | . . . . Recycling Units 1 | . 1 . . Scanalyzers . | . . . . Garrison Access . | . . . . Total Hacks 20 | . 18 . 2 Successful 11 | . 10 . 1 Failed 8 | . 7 . 1 Catastrophic 3 | . 2 . 1 Database Lockouts 1 | . 1 . . Manual 11 | . 9 . 2 Terminals 15 | . 13 . 2 Fabricators . | . . . . Repair Stations . | . . . . Recycling Units 5 | . 5 . . Scanalyzers . | . . . . Garrison Access . | . . . . Terminal Hacks 7 | . 6 . 1 Robot Analysis 2 | . 2 . . Alert Level 1 | . 1 . . Unreport Threat 3 | . 2 . 1 Hauler Manifests 1 | . 1 . . Fabricator Hacks . | . . . . Repair Station Hacks . | . . . . Recycling Unit Hacks 3 | . 3 . . Process 1 | . 1 . . Report Inventory 1 | . 1 . . Retrieve Matter 1 | . 1 . . Scanalyzer . | . . . . Garrison Access Hacks . | . . . . Unauthorized Hacks 1 | . 1 . . Terminals 1 | . 1 . . Track 1 | . 1 . . Fabricators . | . . . . Repair Stations . | . . . . Recycling Units . | . . . . Scanalyzers . | . . . . Garrison Access . | . . . . Data Cores Recovered . | . . . . Used . | . . . . Hacking Detections 4 | . 3 . 1 Full Trace Events 3 | . 2 . 1 Feedback Events . | . . . . Feedback Blocked . | . . . . Robot Schematics Acquired . | . . . . Robots Built . | . . . . Authchips . | . . . . Time . | . . . . Total Robot Build Rating . | . . . . Part Schematics Acquired . | . . . . Parts Built . | . . . . Authchips . | . . . . Time . | . . . . Total Part Build Rating . | . . . . Parts Repaired . | . . . . Time . | . . . . Parts Recycled . | . . . . Recycled Matter 29 | . 29 . . Retrieved Matter 29 | . 29 . . Retrieved Components . | . . . . Parts Scanalyzed . | . . . . Part Schematics Acquired . | . . . . Parts Damaged . | . . . . Bothacking | -11 -10 -10 -9 ------------ Run | Jun Mat Min Mat Used RIF Installer . | . . . . Robots Hacked . | . . . . Non-combat . | . . . . Combat . | . . . . Robot Hacks Applied . | . . . . Relay Couplers Released . | . . . . Fabnet Peak Effective % . | . . . . Robots Rewired . | . . . . Allies Hacked . | . . . . Hacks Repelled . | . . . . Allies | -11 -10 -10 -9 -------- Run | Jun Mat Min Mat Total Allies . | . . . . Largest Group . | . . . . Highest-Rated Group . | . . . . Highest-Rated Ally . | . . . . Total Orders . | . . . . Ally Attacks . | . . . . Total Damage . | . . . . Kills . | . . . . Allies Corrupted . | . . . . Allies Melted . | . . . . Intel | -11 -10 -10 -9 ------- Run | Jun Mat Min Mat Robot Analysis Total 2 | . 2 . . Derelict Logs Recovered . | . . . . Drone Launches . | . . . . Drone Recoveries . | . . . . Exploration | -11 -10 -10 -9 ------------- Run | Jun Mat Min Mat Turns Passed 1521 | 53 843 279 346 Spaces Moved 984 | 32 552 204 196 Core 11 | 11 . . . Treads . | . . . . Legs 957 | 21 552 204 180 Wheels 16 | . . . 16 Hover . | . . . . Flight . | . . . . Fastest Speed 50 | 50 120 120 120 Average Speed 123 | 128 120 120 136 Slowest Speed 250 | 250 120 190 190 Overloaded Moves . | . . . . Propulsion Burnouts . | . . . . Robots Hopped . | . . . . Cave-ins Triggered . | . . . . Exploration Rate (%) 41 | 3 93 36 33 Regions Visited 3 Branch Regions 1 Pre-discovered Areas . | . . . . Known Exits Taken . | . . . . Unknown Exits Taken 3 | 1 1 1 . Scrap Searched . | . . . . Spaces Dug . | . . . . Terrain Destroyed 84 | . . 29 55 Melee . | . . . . Projectile . | . . . . AOE 84 | . . 29 55 Terrain Rammed . | . . . . Walls Destroyed . | . . . . Machines Disabled . | . . . . Actions | -11 -10 -10 -9 --------- Run | Jun Mat Min Mat Total 1169 | 41 659 224 245 Wait 42 | 3 35 1 3 Move 981 | 31 551 203 196 Hop . | . . . . Pick Up 18 | 1 13 . 4 Fast Attach 11 | 6 1 1 3 Attach 15 | . 1 3 11 Detach . | . . . . Swap 20 | . 9 5 6 Drop 12 | . 10 2 . Fire 69 | . 39 9 21 Melee . | . . . . Ram . | . . . . Kick 1 | . . . 1 Crush . | . . . . Escape Stasis . | . . . . Rewire . | . . . . Trap . | . . . . Miscellaneous . | . . . . Route ------- -11/Junkyard -10/Materials (discovered 4 exits: *Mat x2 / [*Min x2]) -10/Mines -9/Materials History --------- Turn | Location | Event 24 | -11/Junkyard | Discovered new exit (range 15) 54 | -11/Junkyard | Entered Materials 209 | -10/Materials | Discovered new exit (range 14) 315 | -10/Materials | Build established: Mutant 348 | -10/Materials | Discovered new exit (range 16) 441 | -10/Materials | Discovered new exit (range 16) 515 | -10/Materials | Central database locked down 565 | -10/Materials | Discovered new exit (range 14) 897 | -10/Materials | Entered Mines 899 | -10/Mines | Discovered new exit (range 15) 946 | -10/Mines | Lost 3 parts (1p1u1w) 1067 | -10/Mines | Core integrity fell below 50% 1078 | -10/Mines | Core integrity fell below 20% 1176 | -10/Mines | Entered Materials 1176 | -9/Materials | Evolved 2 slots: Propulsion x1, Weapon x1 1409 | -9/Materials | Lost 7 parts (1p3n2u1w) 1488 | -9/Materials | Core integrity fell below 50% 1496 | -9/Materials | Core integrity fell below 20% 1522 | -9/Materials | Destroyed by Y-45 Defender with Beam Rifle Last Messages --------------- 01482_ Grenade Launcher destroyed. 01485_ Acquired Mining Claw. 01486_ Critical hit (Burn: +37). 01490_ Aluminum Leg destroyed. 01490_ Critical hit (Burn: +37). 01493_ Aluminum Leg destroyed. 01494_ Triggered EMP Trap. 01494_ A bubble of electromagnetic force engulfs the area. 01494_ Chain reaction triggered in Ion Engine. 01505_ Acquired Grenade Launcher. 01515_ G-47 Trooper destroyed. 01515_ G-34 Mercenary destroyed. 01516_ Aluminum Leg destroyed. 01516_ Critical hit (Burn: +37). 01518_ Destroyed Lgt. Nuclear Core. 01518_ K-01 Serf destroyed. 01518_ Critical hit (Burn: +37). 01519_ Critical hit (Destroy). 01519_ Grenade Launcher destroyed. 01521_ The unstable cave ceiling collapses. Map ----- +----------------------------------------------------+ | ???????????????????????????????????????????? | | ???????????????????????????????????????????? | | ???????????????????????????????????????????? | | ???????????????????????????????????????????? | | ???????????????????????????????????????????? | | ???????????????????????????????????????????? | | ???????????????????????????????????????????? | | ???????????????????????????????????????????? | | ???????????????????????????????????????????? | | ???????????????????????????????????????????? | | ???????????????????????????????????????????? | | ???????????????????????????????????????????? | | ???????????????????????????????????????????? | | ???????????????????????????????????????????? | | ???????????????????????????????????????????? | | ???????????????????????????????????????????? | | ???????????????????????????????????????????? | | ???????????????????????????????????????????? | | ?????????????????????????????????? ?????? | | ???????????????????????##########? ?????? | | ???????????????????#???# #? #?????? | | ???????????????????# ??# #? #?????? | | ???????????????????+ ?# ||## #?????? | | ???????????????????# # | ## #?????? | | ???????????????????? ; || ## #?????? | | ???????????????????????# @ # #?????? | | ???????????????????????# # #?????? | | ???????????????????????# # #?????? | | ???????????????????????# g%g ?????? | | ????????????????????# #####! #????? | | ????????????????????# %=Y Y #????? | | ???????????????????????#### #????? | | ???????????????????????????# #????? | | ????????????????????????????#Y ###???? | | ????????????????????????????# #???? | | ????????????????????????????# / #???? | | ????????????????????????????# /^ #???? | | ????????????????????????????# // #???? | | ????????????????????????????# // #???? | | ????????????????????????????# #???? | | ????????????????????????????# #???? | | ????????????????????????????# ##########???? | | ????????????????????""" #### ##########???? | | ??????????????????# / #???? | | ??????????????????????##/####/######## #???? | | #??????????????????????????# "T" #???????? | | #??????????????????????????# #???????? | | ????????????????????????????# #???????? | | ????????????????????????????# #???????? | | ????????????????????????????# +???????? | +----------------------------------------------------+ Best States ------------- Heat Dissipation 28 Energy Generation 10 Energy Capacity 250 Matter Stores 300 Matter Capacity 300 Sight Range 16 Robot Scan Range 14 Terrain Scan Density 10 Armor Coverage 150 Evasion (%) 55 Item Schematics ----------------- None Robot Schematics ------------------ None Fabricated ------------ Nothing Alien Tech Used ----------------- None Achievements -------------- None Challenges ------------ None Game ------ Seed ScanEfficiencyEdition Manual? 0 Play Time 00:15:01 Cumulative 32.2 hours Start 2023.09.08 @ 12:48:36 End 2023.09.08 @ 13:02:36 Sessions 1 Manual Loads 0 Difficulty Rogue Special Mode None Game No. 25 Rogue 25 Adventurer 0 Explorer 0 Win Type - Total 0 Types 0/0/0/0/0/0/0/0/0 Lore% 18 Gallery% 29 Achievement% 28 Wizard Run 0 Options --------- ASCII 0 Keyboard 1 Movement Numpad Keybinds 0 Fullscreen 1 Font 24/Terminus Map View 76x50 Tactical HUD 1 Map Filters NONE Filters NONE Steam 1 RUN: 8c93d7af-0e5f-414b-81d1-dd46f90345a7